Cogmind - Beta 11 X5 @@@ ROGUE MODE // 2021.07.12 @ 00:12:55 Player: Exp. Geonium Core Result: Self-destructed Performance ------------- Evolutions (1) 500 Regions Visited (3) 600 Robots Destroyed (12) 60 Value Destroyed (111) 111 Prototype IDs (0) 0 Alien Tech Used (0) 0 Bonus (0) 0 TOTAL SCORE: 1271 Bonus ------- None Cogmind --------- Core Integrity 94/400 Matter 237/300 Energy 100/100 System Corruption 0% Temperature Cool (0) Movement Core (50) Location -9/Mines Parts ------- > --- POWER (1) -------- (None) > --- PROPULSION (4) --- (None) > --- UTILITY (2) ------ (None) > --- WEAPON (2) ------- (None) > --- INVENTORY (5) ---- (None) Peak State ------------ > --- POWER ------------ Light Ion Engine > --- PROPULSION ------- Flight Unit Flight Unit Flight Unit Flight Unit > --- UTILITY ---------- (None) > --- WEAPON ----------- Mini Grenade Launcher > --- INVENTORY -------- (None) [Rating: 7] Favorites ----------- Power Light Ion Engine Engine Light Ion Engine Propulsion Flight Unit Treads Light Treads Flight Unit Flight Unit Utility None Weapon Small Laser Energy Gun Small Laser Ballistic Gun Light Assault Rifle Launcher Mini Grenade Launcher Build | -11 -10 -9 -9 ------- Run | Scr Mat Mat Min Slots Evolved 2 | . . 2 . Power . | . . . . Propulsion 2 | . . 2 . Utility . | . . . . Weapon . | . . . . Parts Attached 11 | 2 4 5 . Power 1 | . 1 . . Engine 1 | . 1 . . Core . | . . . . Reactor . | . . . . Propulsion 7 | 1 2 4 . Treads 1 | 1 . . . Leg . | . . . . Wheel . | . . . . Hover . | . . . . Flight 6 | . 2 4 . Utility . | . . . . Device . | . . . . Storage . | . . . . Processor . | . . . . Hackware . | . . . . Protection . | . . . . Artifact . | . . . . Weapon 3 | 1 1 1 . Energy Gun 1 | 1 . . . Energy Cannon . | . . . . Ballistic Gun 1 | . 1 . . Ballistic Cannon . | . . . . Launcher 1 | . . 1 . Special Weapon . | . . . . Impact Weapon . | . . . . Slashing Weapon . | . . . . Piercing Weapon . | . . . . Special Melee Weapon . | . . . . Unidentified Prototypes . | . . . . Parts Lost 11 | . 3 8 . Power 1 | . . 1 . Propulsion 7 | . 1 6 . Utility . | . . . . Weapon 3 | . 2 1 . Highest Loss Streak 9 | . 2 9 . Average Slot Usage (%) 39 | . 38 42 . Engine 5 | . 6 3 . Treads 3 | . 5 . . Flight 18 | . 12 33 . Energy Gun 9 | . 13 . . Ballistic Gun 1 | . 2 . . Launcher 1 | . . 5 . Naked Turns 14 | . . 14 . Heaviest Build 4 | 1 4 3 . Greatest Support 16 | 3 8 16 . Greatest Overweight (x) 1 | . 1 . . Average Overweight (x) . | . . . . Largest Inventory Capacity 5 | 5 5 5 . Average Capacity 5 | 5 5 5 . Most Carried 5 | 4 5 2 . Average Carried 1 | 2 1 . . Final Capacity 5 | 5 5 5 5 Final Carried 3 | . 3 . . Class Distribution -------------------- 100% | Mutant Dominant Class ---------------- Mutant | -10/Materials Mutant | -9/Materials Mutant | -9/Mines Resources | -11 -10 -9 -9 ----------- Run | Scr Mat Mat Min Matter Collected 231 | 194 37 . . Remotely . | . . . . Salvage Created 108 | . 86 22 . Parts 20 | . 12 8 . Haulers Intercepted . | . . . . Recyclers Shooed 1 | . 1 . . Parts Field Recycled . | . . . . Retrieved Matter . | . . . . Parts Self-Destructed . | . . . . Prevented . | . . . . Kills | -11 -10 -9 -9 ------- Run | Scr Mat Mat Min Combat Hostiles Destroyed 11 | . 6 5 . Guns 6 | . 6 . . AOE 5 | . . 5 . Classes Destroyed 2 | . 1 1 . Worker 1 | . . 1 . Swarmer 11 | . 6 5 . Best Kill Streak 6 | . 3 6 . Combat Bots Only 5 | . 3 5 . Max Kills in Single Turn 5 | . 1 5 . Gunslinging . | . . . . Exploded 4 | . . 4 . Melee . | . . . . Uniques/NPCs Destroyed . | . . . . Combat | -11 -10 -9 -9 -------- Run | Scr Mat Mat Min Damage Taken 924 | . 420 504 . Core 415 | . 109 306 . Absorbed by Shields . | . . . . Core Remaining (%) 78 | 100 56 . . Volleys Fired 23 | . 19 4 . Largest 2 | . 2 1 . Hottest 60 | . 60 30 . Shots Fired 28 | . 24 4 . Gun 24 | . 24 . . Cannon . | . . . . Launcher 4 | . . 4 . Special . | . . . . Kinetic 5 | . 5 . . Thermal 19 | . 19 . . Explosive 4 | . . 4 . Electromagnetic . | . . . . Robot Hit Streak 7 | . 7 2 . Robot Miss Streak 5 | . 5 1 . Penetration Max . | . . . . Secondary Targets 2 | . 2 . . Max Gunslinging Chain 1 | . 1 . . Shots Hit Robots 14 | . 12 2 . Core Hits 15 | . 8 7 . Critical Kills . | . . . . Critical Parts Destroyed . | . . . . Critical Strikes . | . . . . Melee Attacks . | . . . . Impact . | . . . . Slashing . | . . . . Piercing . | . . . . Sneak Attacks . | . . . . Combat Hostiles . | . . . . Follow-up Attacks . | . . . . Damage Inflicted 514 | . 150 364 . Guns 150 | . 150 . . Cannons . | . . . . Explosions 361 | . . 361 . Melee . | . . . . Ramming 3 | . . 3 . Kinetic 15 | . 15 . . Thermal 135 | . 135 . . Explosive 361 | . . 361 . Electromagnetic . | . . . . Impact . | . . . . Slashing . | . . . . Piercing . | . . . . Highest Corruption . | . . . . Average Corruption . | . . . . Corruption Purged . | . . . . Overload Shots . | . . . . Overflow Damage 10 | . . 10 . Projectiles . | . . . . Explosions 10 | . . 10 . Melee . | . . . . Knockbacks . | . . . . Impact . | . . . . Kinetic . | . . . . Secondary . | . . . . Self-Inflicted Damage 65 | . . 65 . Shots 2 | . . 2 . Rammed 3 | . . 3 . Targets Rammed 3 | . . 3 . Kicked . | . . . . Crushed . | . . . . Highest Temperature 10 | . 10 2 . Average Temperature 5 | . 5 2 . Received Heat Transfer 237 | . 90 147 . Siege Activations . | . . . . Robots Corrupted . | . . . . Combat Hostiles . | . . . . Parts Fried . | . . . . Impact Corruptions . | . . . . Robots Melted . | . . . . Combat Hostiles . | . . . . Parts Melted . | . . . . Heat Transferred 300 | . 300 . . Parts Sabotaged . | . . . . Parts Stolen . | . . . . Parts Stripped . | . . . . Power Chain Reactions . | . . . . Missiles Intercepted . | . . . . Alert | -11 -10 -9 -9 ------- Run | Scr Mat Mat Min Peak Influence 224 | . 224 214 . Initial 94 | . . 94 79 Average 118 | . 111 140 . Maximum Alert Level 1 | . 1 1 . Low Security (%) 88 | 100 94 75 . Level 1 11 | . 5 25 . Level 2 . | . . . . Level 3 . | . . . . Level 4 . | . . . . Level 5 . | . . . . High Security . | . . . . Max Security . | . . . . Squads Dispatched 4 | . 2 2 . Investigation 2 | . 1 1 . Extermination . | . . . . Reinforcement 2 | . 1 1 . Assault . | . . . . Garrison . | . . . . Intercept . | . . . . Construction Impeded . | . . . . Haulers Reinforced . | . . . . Cargo Convoy Interrupts . | . . . . Stealth | -11 -10 -9 -9 --------- Run | Scr Mat Mat Min Distress Signals 2 | . 1 1 . Communications Jammed . | . . . . Distress Signals . | . . . . Times Spotted 42 | . 16 26 . Peak Tracking Total 18 | . 8 18 . Tactical Retreats 1 | . 1 . . Traps | -11 -10 -9 -9 ------- Run | Scr Mat Mat Min Traps Triggered . | . . . . Indirectly . | . . . . Trap Hack Attempts . | . . . . Triggered . | . . . . Disarmed . | . . . . Reprogrammed . | . . . . Reused . | . . . . Traps Extracted . | . . . . Installed . | . . . . Triggered . | . . . . Machines | -11 -10 -9 -9 ---------- Run | Scr Mat Mat Min Machines Disabled . | . . . . Max in Single Turn . | . . . . Machines Sabotaged . | . . . . Garrisons Compromised . | . . . . Overloaded Fab Kills . | . . . . Fab Network Shutdowns . | . . . . Hacking | -11 -10 -9 -9 --------- Run | Scr Mat Mat Min Machines Accessed 3 | . 2 1 . Terminals 3 | . 2 1 . Fabricators . | . . . . Repair Stations . | . . . . Recycling Units . | . . . . Scanalyzers . | . . . . Garrison Access . | . . . . Total Hacks 8 | . 5 3 . Successful 1 | . 1 . . Failed 7 | . 4 3 . Catastrophic 4 | . 2 2 . Database Lockouts . | . . . . Manual 8 | . 5 3 . Terminals 8 | . 5 3 . Fabricators . | . . . . Repair Stations . | . . . . Recycling Units . | . . . . Scanalyzers . | . . . . Garrison Access . | . . . . Terminal Hacks 1 | . 1 . . Level Access Points 1 | . 1 . . Fabricator Hacks . | . . . . Repair Station Hacks . | . . . . Recycling Unit Hacks . | . . . . Scanalyzer . | . . . . Garrison Access Hacks . | . . . . Unauthorized Hacks . | . . . . Terminals . | . . . . Fabricators . | . . . . Repair Stations . | . . . . Recycling Units . | . . . . Scanalyzers . | . . . . Garrison Access . | . . . . Data Cores Recovered . | . . . . Used . | . . . . Hacking Detections 3 | . 2 1 . Full Trace Events 2 | . 1 1 . Feedback Events . | . . . . Feedback Blocked . | . . . . Robot Schematics Acquired . | . . . . Robots Built . | . . . . Matter . | . . . . Time . | . . . . Total Robot Build Rating . | . . . . Part Schematics Acquired . | . . . . Parts Built . | . . . . Matter . | . . . . Time . | . . . . Total Part Build Rating . | . . . . Parts Repaired . | . . . . Time . | . . . . Parts Recycled . | . . . . Recycled Matter . | . . . . Retrieved Matter . | . . . . Retrieved Components . | . . . . Parts Scanalyzed . | . . . . Part Schematics Acquired . | . . . . Parts Damaged . | . . . . Bothacking | -11 -10 -9 -9 ------------ Run | Scr Mat Mat Min Used RIF Installer . | . . . . Robots Hacked . | . . . . Non-combat . | . . . . Combat . | . . . . Robot Hacks Applied . | . . . . Relay Couplers Released . | . . . . Robots Rewired . | . . . . Allies Hacked . | . . . . Hacks Repelled . | . . . . Allies | -11 -10 -9 -9 -------- Run | Scr Mat Mat Min Total Allies . | . . . . Largest Group . | . . . . Highest-Rated Group . | . . . . Highest-Rated Ally . | . . . . Total Orders . | . . . . Ally Attacks . | . . . . Total Damage . | . . . . Kills . | . . . . Allies Corrupted . | . . . . Allies Melted . | . . . . Intel | -11 -10 -9 -9 ------- Run | Scr Mat Mat Min Robot Analysis Total . | . . . . Derelict Logs Recovered . | . . . . Drone Launches . | . . . . Drone Recoveries . | . . . . Exploration | -11 -10 -9 -9 ------------- Run | Scr Mat Mat Min Turns Passed 207 | 4 139 64 . Spaces Moved 339 | 1 207 131 . Core 78 | 1 57 20 . Treads . | . . . . Legs . | . . . . Wheels . | . . . . Hover . | . . . . Flight 261 | . 150 111 . Fastest Speed 31 | 50 37 31 . Average Speed 39 | 50 41 35 . Slowest Speed 100 | 50 100 50 . Overloaded Moves . | . . . . Propulsion Burnouts . | . . . . Robots Hopped 16 | . 9 7 . Cave-ins Triggered . | . . . . Exploration Rate (%) 22 | 2 52 31 6 Regions Visited 3 Branch Regions 1 Pre-discovered Areas . | . . . . Known Exits Taken 1 | . 1 . . Unknown Exits Taken 2 | 1 . 1 . Scrap Searched . | . . . . Spaces Dug . | . . . . Terrain Destroyed 40 | . . 40 . Melee . | . . . . Projectile . | . . . . AOE 40 | . . 40 . Terrain Rammed . | . . . . Walls Destroyed . | . . . . Machines Disabled . | . . . . Actions | -11 -10 -9 -9 --------- Run | Scr Mat Mat Min Total 368 | 5 226 137 . Wait . | . . . . Move 306 | . 188 118 . Hop 14 | . 9 5 . Pick Up 8 | . 6 2 . Fast Attach 1 | . 1 . . Attach 10 | 2 3 5 . Detach . | . . . . Swap . | . . . . Drop 3 | 3 . . . Fire 23 | . 19 4 . Melee . | . . . . Ram 3 | . . 3 . Kick . | . . . . Crush . | . . . . Escape Stasis . | . . . . Rewire . | . . . . Trap . | . . . . Miscellaneous . | . . . . Route ------- -11/Scrapyard -10/Materials (discovered 5 exits: *Mat x3 / [*Min x2]) -9/Materials (discovered 2 exits: [*Min x2]) -9/Mines History --------- Turn | Location | Event 1 | -11/Scrapyard | Released all parts (6) 5 | -11/Scrapyard | Discovered new exit (range 0) 5 | -11/Scrapyard | Entered Materials 92 | -10/Materials | Discovered new exit (range 8) 126 | -10/Materials | Discovered new exit (range 13) 129 | -10/Materials | Identified exit to Materials 144 | -10/Materials | Entered another Materials area 144 | -9/Materials | Evolved 2 slots: Propulsion x2 190 | -9/Materials | Discovered new exit (range 8) 199 | -9/Materials | Discovered new exit (range 15) 200 | -9/Materials | Core integrity fell below 50% 208 | -9/Materials | Entered Mines 208 | -9/Mines | Self-destructed Last Messages --------------- 00192_ R-06 Scavenger collects Lgt. Ion Engine. 00192_ Flight Unit destroyed. 00193_ U-05 Engineer lays Concrete. 00194_ R-06 Scavenger destroyed. 00194_ Mni. Grenade Launcher destroyed. 00194_ C-30 ARC bursts open, deploying its payload. 00194_ G-47 Trooper unfolds itself. 00194_ G-34 Mercenary unfolds itself. 00194_ Flight Unit destroyed. 00195_ R-06 Scavenger collects Sml. Storage Unit. 00196_ G-34 Mercenary destroyed. 00196_ Flight Unit destroyed. 00198_ R-06 Scavenger collects Sml. Laser. 00199_ EXIT=FOUND 00202_ R-06 Scavenger collects Aluminum Leg. 00205_ Slammed into K-01 Serf. 00206_ Slammed into Y-45 Defender. LOCATION=UNKNOWN GOAL=ESCAPE Something is scanning the area. Map ----- +----------------------------------------------------+ | | | | | | | | | | | | | | | | | | | ??????????????????????????????????????????????? | | ??????????????????????????????????????????????? | | ??????????????????????????????????????????????? | | ??????????????????????????????????????????????? | | ????????????????????###???????????????????????? | | ????????????????????# ##?????????????????????? | | ???????????????????? #?????????????????????? | | ???????????????????? #?????????????????????? | | ???????????????????? #?????????????????????? | | ????????????????????# #?????????????????????? | | ???????????????????## ??????????????????????? | | ??????????????????## ??????????????????????? | | ??????????????????# s ??????????????????????? | | ?????????????????## ss ??????????????????????? | | ?????????????????? s#??????????????????????? | | ???????????????????# ##?????????????????????? | | ???????????????????# @ #?????????????????????? | | ???????????????????# #????????????????????? | | ??????????????????# ???????????????????? | | ????????????????? ?????????????????? | | ??????????????? ???????????????? | | ??????????????###### #?????????????? | | ???????????????????##### #?????????????? | | ????????????????????????# ##?????????????? | | ?????????????????????????#######??????????????? | | ??????????????????????????????????????????????? | | ??????????????????????????????????????????????? | | ??????????????????????????????????????????????? | | ??????????????????????????????????????????????? | | ??????????????????????????????????????????????? | | ??????????????????????????????????????????????? | | ??????????????????????????????????????????????? | | ??????????????????????????????????????????????? | | ??????????????????????????????????????????????? | | ??????????????????????????????????????????????? | | ??????????????????????????????????????????????? | | ??????????????????????????????????????????????? | | ??????????????????????????????????????????????? | | ??????????????????????????????????????????????? | | ??????????????????????????????????????????????? | | ??????????????????????????????????????????????? | +----------------------------------------------------+ Best States ------------- Heat Dissipation 28 Energy Generation 10 Energy Capacity 125 Matter Stores 294 Matter Capacity 300 Sight Range 16 Terrain Scan Density 10 Evasion (%) 63 Recoil Reduction 1 Item Schematics ----------------- None Robot Schematics ------------------ None Fabricated ------------ Nothing Alien Tech Used ----------------- None Achievements -------------- None Challenges ------------ None Game ------ Seed SegregatorStormAnalyzer Manual? 0 Play Time 00:03:47 Cumulative 152.5 hours Start 2021.07.12 @ 00:09:11 End 2021.07.12 @ 00:12:55 Sessions 1 Manual Loads 0 Difficulty Rogue Special Mode None Game No. 231 Rogue 231 Adventurer 0 Explorer 0 Win Type - Total 9 Types 7/0/1/1/0/0/0/0/0 Lore% 51 Gallery% 77 Achievement% 62 Wizard Run 0 Options --------- ASCII 0 Keyboard 0 Movement Mouse Keybinds 0 Fullscreen 1 Font 18/Terminus Map View 76x50 Tactical HUD 1 Map Filters NONE Filters NONE Steam 1 RUN: ea15d5d3-fe15-4537-a03d-436b1410b532